[Event "*** Titled Tuesday 3|2 Blitz"]
[Site "Chess.com"]
[Date "2017.06.06"]
[Round "1"]
[White "karinachess1"]
[Black "Hamisandwich"]
[Result "0-1"]
[WhiteElo "2057"]
[BlackElo "2449"]
[TimeControl "180+2"]
[EndTime "14:03:29 PDT"]
[Termination "Hamisandwich won on time"]

1. e4 {[%clk 0:03:00.1]} 1... h6 {[%clk 0:03:00.4]} 2. d4 {[%clk 0:03:00.4]}
2... a6 {[%clk 0:03:01.6]} 3. Nf3 {[%clk 0:03:00.2]} 3... e6 {[%clk 0:03:02.9]}
4. c4 {[%clk 0:02:57.8]} 4... d6 {[%clk 0:03:02.7]} 5. Nc3 {[%clk 0:02:58.5]}
5... g6 {[%clk 0:03:03.8]} 6. Bd3 {[%clk 0:02:59.3]} 6... Bg7 {[%clk 0:03:03.9]}
7. Be3 {[%clk 0:03:00.8]} 7... Nd7 {[%clk 0:03:04]} 8. O-O {[%clk 0:02:59.6]}
8... Ne7 {[%clk 0:03:03.3]} 9. Qd2 {[%clk 0:02:59.3]} 9... g5 {[%clk 0:03:00.8]}
10. h3 {[%clk 0:02:55.8]} 10... b6 {[%clk 0:02:57.4]} 11. Ne2 {[%clk 0:02:53.7]}
11... Bb7 {[%clk 0:02:28]} 12. Ng3 {[%clk 0:02:54.2]} 12... Nf6 {[%clk
0:02:21.4]} 13. e5 {[%clk 0:02:50.5]} 13... dxe5 {[%clk 0:02:21.9]} 14. dxe5
{[%clk 0:02:51.9]} 14... Nd7 {[%clk 0:02:23.5]} 15. Nh5 {[%clk 0:02:48]} 15...
Bxf3 {[%clk 0:02:23.1]} 16. Nxg7+ {[%clk 0:02:34.9]} 16... Kf8 {[%clk
0:02:23.5]} 17. Nxe6+ {[%clk 0:02:33.6]} 17... fxe6 {[%clk 0:02:25.4]} 18. gxf3
{[%clk 0:02:35.2]} 18... Nxe5 {[%clk 0:02:24.4]} 19. Be4 {[%clk 0:02:36.5]}
19... N7c6 {[%clk 0:01:19.1]} 20. Qc3 {[%clk 0:02:18.1]} 20... Kf7 {[%clk
0:01:19.5]} 21. f4 {[%clk 0:02:03.1]} 21... gxf4 {[%clk 0:01:09.6]} 22. Bxf4
{[%clk 0:02:04.5]} 22... Qh4 {[%clk 0:01:02.1]} 23. Bxe5 {[%clk 0:01:47.6]}
23... Qxe4 {[%clk 0:01:00.2]} 24. Bg3 {[%clk 0:01:33.6]} 24... Nd4 {[%clk
0:00:57.5]} 25. Qe3 {[%clk 0:01:20.4]} 25... Nf3+ {[%clk 0:00:20.9]} 26. Kh1
{[%clk 0:01:20.3]} 26... Ng5+ {[%clk 0:00:22.8]} 27. Qxe4 {[%clk 0:01:19.2]}
27... Nxe4 {[%clk 0:00:24.7]} 28. Bxc7 {[%clk 0:01:19.9]} 28... Rhc8 {[%clk
0:00:24.9]} 29. Bxb6 {[%clk 0:01:18.9]} 29... Rab8 {[%clk 0:00:25.4]} 30. c5
{[%clk 0:00:35.1]} 30... Nxc5 {[%clk 0:00:25.5]} 31. Bxc5 {[%clk 0:00:36.6]}
31... Rxc5 {[%clk 0:00:27.3]} 32. b3 {[%clk 0:00:32.5]} 32... Rc2 {[%clk
0:00:27.7]} 33. Kg2 {[%clk 0:00:31.5]} 33... Rg8+ {[%clk 0:00:28]} 34. Kh2
{[%clk 0:00:32.4]} 34... Rg5 {[%clk 0:00:28.2]} 35. a4 {[%clk 0:00:31.9]} 35...
Rf5 {[%clk 0:00:23.3]} 36. Kg2 {[%clk 0:00:30.4]} 36... Rg5+ {[%clk 0:00:22.3]}
37. Kh2 {[%clk 0:00:31.5]} 37... Rf5 {[%clk 0:00:22.1]} 38. Kg2 {[%clk
0:00:32.6]} 38... Rc3 {[%clk 0:00:23.6]} 39. b4 {[%clk 0:00:18.2]} 39... Rg5+
{[%clk 0:00:22.9]} 40. Kh2 {[%clk 0:00:19.6]} 40... Rh5 {[%clk 0:00:24.3]} 41.
Rh1 {[%clk 0:00:20.7]} 41... Rb3 {[%clk 0:00:21.2]} 42. b5 {[%clk 0:00:19.7]}
42... axb5 {[%clk 0:00:22.3]} 43. a5 {[%clk 0:00:16]} 43... b4 {[%clk
0:00:20.1]} 44. a6 {[%clk 0:00:16.6]} 44... Ra3 {[%clk 0:00:22]} 45. a7 {[%clk
0:00:16.7]} 45... Rha5 {[%clk 0:00:22.6]} 46. Rab1 {[%clk 0:00:09]} 46... R3a4
{[%clk 0:00:23.5]} 47. Rb3 {[%clk 0:00:07.3]} 47... Rxa7 {[%clk 0:00:24.5]} 48.
Rhb1 {[%clk 0:00:08.8]} 48... Rb7 {[%clk 0:00:26]} 49. Kg3 {[%clk 0:00:10.3]}
49... Rb5 {[%clk 0:00:27.3]} 50. Kf4 {[%clk 0:00:11.5]} 50... Kf6 {[%clk
0:00:27.9]} 51. Ke4 {[%clk 0:00:12.8]} 51... h5 {[%clk 0:00:28.5]} 52. f4 {[%clk
0:00:14.1]} 52... h4 {[%clk 0:00:29.1]} 53. R1b2 {[%clk 0:00:15.1]} 53... Rb6
{[%clk 0:00:24.1]} 54. Rb1 {[%clk 0:00:16.1]} 54... Rb5 {[%clk 0:00:23.1]} 55.
R1b2 {[%clk 0:00:17]} 55... Ke7 {[%clk 0:00:24.6]} 56. Rb1 {[%clk 0:00:18]}
56... Kd6 {[%clk 0:00:25.8]} 57. Rd1+ {[%clk 0:00:19.3]} 57... Kc5 {[%clk
0:00:26.8]} 58. Rc1+ {[%clk 0:00:19.8]} 58... Kb6 {[%clk 0:00:27.8]} 59. Rc4
{[%clk 0:00:19.2]} 59... Ka5 {[%clk 0:00:25.2]} 60. Rc6 {[%clk 0:00:20.4]} 60...
Ra3 {[%clk 0:00:23.1]} 61. Rb1 {[%clk 0:00:19.4]} 61... Rxh3 {[%clk 0:00:20.1]}
62. Rxe6 {[%clk 0:00:19.8]} 62... b3 {[%clk 0:00:21.1]} 63. f5 {[%clk 0:00:20]}
63... Rh2 {[%clk 0:00:22.2]} 64. Kd3 {[%clk 0:00:18.3]} 64... Rf2 {[%clk
0:00:19.5]} 65. f6 {[%clk 0:00:17.7]} 65... Kb4 {[%clk 0:00:17.5]} 66. Re4+
{[%clk 0:00:18.4]} 66... Ka3 {[%clk 0:00:18.5]} 67. Rxh4 {[%clk 0:00:19.8]}
67... Rxf6 {[%clk 0:00:18.8]} 68. Rh2 {[%clk 0:00:18.6]} 68... Rc6 {[%clk
0:00:16]} 69. Rhb2 {[%clk 0:00:17.8]} 69... Rb4 {[%clk 0:00:13.8]} 70. Kd2
{[%clk 0:00:17.7]} 70... Rbb6 {[%clk 0:00:13]} 71. Kd3 {[%clk 0:00:18.5]} 71...
Rc8 {[%clk 0:00:13.7]} 72. Kd4 {[%clk 0:00:19]} 72... Rb7 {[%clk 0:00:14.8]} 73.
Kd5 {[%clk 0:00:19.3]} 73... Rc2 {[%clk 0:00:14.3]} 74. Rxc2 {[%clk 0:00:11.9]}
74... bxc2 {[%clk 0:00:16.2]} 75. Rxb7 {[%clk 0:00:12.8]} 75... c1=Q {[%clk
0:00:17.7]} 76. Rd7 {[%clk 0:00:14.1]} 76... Kb4 {[%clk 0:00:17.6]} 77. Rd6
{[%clk 0:00:14.4]} 77... Qc4+ {[%clk 0:00:17.8]} 78. Ke5 {[%clk 0:00:15.3]}
78... Kc5 {[%clk 0:00:19.3]} 79. Re6 {[%clk 0:00:14.4]} 79... Qd4+ {[%clk
0:00:19.9]} 80. Kf5 {[%clk 0:00:15.6]} 80... Kd5 {[%clk 0:00:21.3]} 81. Re7
{[%clk 0:00:16.9]} 81... Qf2+ {[%clk 0:00:21.1]} 82. Kg6 {[%clk 0:00:17.2]}
82... Qg3+ {[%clk 0:00:22]} 83. Kf7 {[%clk 0:00:17.7]} 83... Qf4+ {[%clk
0:00:23]} 84. Kg7 {[%clk 0:00:17.8]} 84... Qg5+ {[%clk 0:00:23.8]} 85. Kf7
{[%clk 0:00:18.9]} 85... Qf5+ {[%clk 0:00:24.8]} 86. Kg7 {[%clk 0:00:19.4]}
86... Kd6 {[%clk 0:00:25.8]} 87. Rf7 {[%clk 0:00:20.2]} 87... Qg5+ {[%clk
0:00:23.8]} 88. Kh7 {[%clk 0:00:21.5]} 88... Ke6 {[%clk 0:00:24.1]} 89. Rg7
{[%clk 0:00:20.8]} 89... Qh5+ {[%clk 0:00:24.3]} 90. Kg8 {[%clk 0:00:21.7]}
90... Kf6 {[%clk 0:00:24.7]} 91. Rg1 {[%clk 0:00:17.9]} 91... Qe8+ {[%clk
0:00:24.9]} 92. Kh7 {[%clk 0:00:18.7]} 92... Qd7+ {[%clk 0:00:24.4]} 93. Kg8
{[%clk 0:00:15.3]} 93... Qc8+ {[%clk 0:00:22.5]} 94. Kh7 {[%clk 0:00:14.5]}
94... Qc7+ {[%clk 0:00:22.8]} 95. Kg8 {[%clk 0:00:12.4]} 95... Qb8+ {[%clk
0:00:22.7]} 96. Kh7 {[%clk 0:00:12.7]} 96... Qa7+ {[%clk 0:00:22.7]} 0-1

[Event "*** Titled Tuesday 3|2 Blitz"]
[Site "Chess.com"]
[Date "2017.06.06"]
[Round "2"]
[White "dtn70"]
[Black "heartofatiger"]
[Result "1-0"]
[WhiteElo "2226"]
[BlackElo "2373"]
[TimeControl "180+2"]
[EndTime "14:04:55 PDT"]
[Termination "dtn70 won by resignation"]

1. e4 {[%clk 0:02:58.3]} 1... c5 {[%clk 0:02:59.3]} 2. Nf3 {[%clk 0:02:57.8]}
2... e6 {[%clk 0:03:00.1]} 3. d3 {[%clk 0:02:58.2]} 3... d5 {[%clk 0:03:00.3]}
4. Nbd2 {[%clk 0:02:59.2]} 4... Nc6 {[%clk 0:03:00]} 5. g3 {[%clk 0:02:59.7]}
5... Bd6 {[%clk 0:03:01.5]} 6. Bg2 {[%clk 0:03:00.6]} 6... Nge7 {[%clk
0:03:02.9]} 7. O-O {[%clk 0:03:01.1]} 7... O-O {[%clk 0:03:04.4]} 8. Re1 {[%clk
0:03:01.5]} 8... f6 {[%clk 0:03:04.5]} 9. c3 {[%clk 0:03:01.7]} 9... Bd7 {[%clk
0:03:02.1]} 10. d4 {[%clk 0:03:02.2]} 10... cxd4 {[%clk 0:03:02.1]} 11. cxd4
{[%clk 0:03:02.9]} 11... dxe4 {[%clk 0:03:02.8]} 12. Nxe4 {[%clk 0:03:03.1]}
12... Nd5 {[%clk 0:03:03.9]} 13. Nxd6 {[%clk 0:03:03]} 13... Qe7 {[%clk
0:03:00.9]} 14. Nxb7 {[%clk 0:03:02.1]} 1-0

[Event "*** Titled Tuesday 3|2 Blitz"]
[Site "Chess.com"]
[Date "2017.06.06"]
[Round "2"]
[White "TrickyTrapChess"]
[Black "Divertissement"]
[Result "1-0"]
[WhiteElo "2268"]
[BlackElo "2401"]
[TimeControl "180+2"]
[EndTime "14:06:40 PDT"]
[Termination "TrickyTrapChess won by resignation"]

1. c4 {[%clk 0:03:02]} 1... e6 {[%clk 0:02:59.6]} 2. Nc3 {[%clk 0:03:01.5]} 2...
d5 {[%clk 0:03:00.1]} 3. d4 {[%clk 0:03:01.9]} 3... Nf6 {[%clk 0:02:59.8]} 4.
cxd5 {[%clk 0:03:02.2]} 4... exd5 {[%clk 0:03:00]} 5. Bg5 {[%clk 0:03:03.6]}
5... c6 {[%clk 0:03:00]} 6. e3 {[%clk 0:03:03.4]} 6... Bf5 {[%clk 0:02:56.6]} 7.
Bd3 {[%clk 0:03:00.4]} 7... Bxd3 {[%clk 0:02:57.1]} 8. Qxd3 {[%clk 0:03:01]}
8... Nbd7 {[%clk 0:02:57.5]} 9. Nf3 {[%clk 0:03:00.1]} 9... Be7 {[%clk
0:02:57.3]} 10. O-O {[%clk 0:02:59]} 10... O-O {[%clk 0:02:58.3]} 11. Rfe1
{[%clk 0:02:57.4]} 11... Re8 {[%clk 0:02:56.8]} 12. Rac1 {[%clk 0:02:55.5]}
12... Nf8 {[%clk 0:02:56.4]} 13. e4 {[%clk 0:02:51.9]} 13... dxe4 {[%clk
0:02:54.5]} 14. Nxe4 {[%clk 0:02:53.4]} 14... Nxe4 {[%clk 0:02:53.9]} 15. Rxe4
{[%clk 0:02:49.2]} 15... Bxg5 {[%clk 0:02:51.5]} 16. Rxe8 {[%clk 0:02:49.1]}
16... Qxe8 {[%clk 0:02:47.9]} 17. Nxg5 {[%clk 0:02:50.1]} 17... Ng6 {[%clk
0:02:39.4]} 18. h4 {[%clk 0:02:45]} 18... f6 {[%clk 0:02:23.8]} 19. Qb3+ {[%clk
0:02:41]} 19... Kh8 {[%clk 0:02:05.8]} 20. Nf7+ {[%clk 0:02:39.9]} 20... Kg8
{[%clk 0:02:06]} 21. Nd6+ {[%clk 0:02:40.8]} 1-0

[Event "*** Titled Tuesday 3|2 Blitz"]
[Site "Chess.com"]
[Date "2017.06.06"]
[Round "2"]
[White "djano"]
[Black "tigra"]
[Result "0-1"]
[WhiteElo "2360"]
[BlackElo "2603"]
[TimeControl "180+2"]
[EndTime "14:08:44 PDT"]
[Termination "tigra won by resignation"]

1. d4 {[%clk 0:03:02]} 1... Nf6 {[%clk 0:02:51.7]} 2. Bf4 {[%clk 0:03:02.7]}
2... d5 {[%clk 0:02:50.7]} 3. e3 {[%clk 0:03:03.1]} 3... c5 {[%clk 0:02:51.6]}
4. c3 {[%clk 0:03:03.8]} 4... Nc6 {[%clk 0:02:53.1]} 5. Nd2 {[%clk 0:03:04.3]}
5... Bf5 {[%clk 0:02:53.6]} 6. Qb3 {[%clk 0:02:58.4]} 6... Qc8 {[%clk
0:02:53.3]} 7. dxc5 {[%clk 0:02:47.4]} 7... e5 {[%clk 0:02:53.8]} 8. Bg5 {[%clk
0:02:48.6]} 8... Nd7 {[%clk 0:02:54.6]} 9. Qxd5 {[%clk 0:02:41.9]} 9... Nxc5
{[%clk 0:02:53.8]} 10. Bb5 {[%clk 0:02:33.4]} 10... f6 {[%clk 0:02:51.7]} 11.
Bh4 {[%clk 0:02:31]} 11... a6 {[%clk 0:02:43.8]} 12. Be2 {[%clk 0:02:30.7]}
12... Qc7 {[%clk 0:02:36.6]} 13. Qf3 {[%clk 0:02:27]} 13... Nd3+ {[%clk
0:02:35.2]} 14. Kf1 {[%clk 0:02:07.9]} 14... Bg6 {[%clk 0:02:33.7]} 15. Bxd3
{[%clk 0:01:49.9]} 15... Bxd3+ {[%clk 0:02:33.3]} 16. Ne2 {[%clk 0:01:51.4]}
16... Qb6 {[%clk 0:02:28.8]} 17. b3 {[%clk 0:01:44.7]} 17... Qa5 {[%clk
0:02:28]} 18. b4 {[%clk 0:01:36.8]} 18... Qa3 {[%clk 0:02:25.8]} 19. e4 {[%clk
0:01:30.5]} 19... Qxc3 {[%clk 0:02:21.5]} 20. Rd1 {[%clk 0:00:51.9]} 20... Nd4
{[%clk 0:02:21.4]} 21. Qh5+ {[%clk 0:00:48.1]} 21... g6 {[%clk 0:02:21.3]} 22.
Ke1 {[%clk 0:00:35.9]} 22... gxh5 {[%clk 0:02:21.8]} 0-1

[Event "*** Titled Tuesday 3|2 Blitz"]
[Site "Chess.com"]
[Date "2017.06.06"]
[Round "2"]
[White "Er_is_geen_hoop_meer"]
[Black "Colombiano07"]
[Result "0-1"]
[WhiteElo "2310"]
[BlackElo "2229"]
[TimeControl "180+2"]
[EndTime "14:08:52 PDT"]
[Termination "Colombiano07 won by checkmate"]

1. d4 {[%clk 0:01:46.4]} 1... Nf6 {[%clk 0:02:59.7]} 2. Bf4 {[%clk 0:01:45.4]}
2... e6 {[%clk 0:02:54.5]} 3. e3 {[%clk 0:01:46.4]} 3... b6 {[%clk 0:02:55.7]}
4. c3 {[%clk 0:01:47]} 4... Bb7 {[%clk 0:02:57]} 5. Nd2 {[%clk 0:01:48.4]} 5...
g6 {[%clk 0:02:58.4]} 6. Ngf3 {[%clk 0:01:49.1]} 6... Bg7 {[%clk 0:03:00]} 7.
Bd3 {[%clk 0:01:49.9]} 7... d6 {[%clk 0:03:01.3]} 8. h4 {[%clk 0:01:50.9]} 8...
Nbd7 {[%clk 0:02:59.8]} 9. Qc2 {[%clk 0:01:51.6]} 9... Qe7 {[%clk 0:02:58.9]}
10. Bh2 {[%clk 0:01:49.8]} 10... e5 {[%clk 0:02:54.2]} 11. Ne4 {[%clk
0:01:50.4]} 11... Nxe4 {[%clk 0:02:48.9]} 12. Bxe4 {[%clk 0:01:52.3]} 12... d5
{[%clk 0:02:50.2]} 13. Bd3 {[%clk 0:01:39.5]} 13... e4 {[%clk 0:02:50.7]} 14.
Bxc7 {[%clk 0:01:41]} 14... exd3 {[%clk 0:02:47.4]} 15. Qxd3 {[%clk 0:01:42.9]}
15... O-O {[%clk 0:02:45.9]} 16. O-O-O {[%clk 0:01:42]} 16... Nc5 {[%clk
0:02:45.6]} 17. dxc5 {[%clk 0:01:40.8]} 17... Qxc7 {[%clk 0:02:46.6]} 18. cxb6
{[%clk 0:01:42.3]} 18... axb6 {[%clk 0:02:47.3]} 19. a3 {[%clk 0:01:41.5]} 19...
Ba6 {[%clk 0:02:44.5]} 20. Qxd5 {[%clk 0:01:35.7]} 20... Bxc3 {[%clk 0:02:44.7]}
21. bxc3 {[%clk 0:01:35.3]} 21... Qxc3+ {[%clk 0:02:44.9]} 22. Kb1 {[%clk
0:01:36.6]} 22... Bc4 {[%clk 0:02:42.9]} 23. Qd2 {[%clk 0:01:34.7]} 23... Qxa3
{[%clk 0:02:43.1]} 24. Qd4 {[%clk 0:01:08]} 24... Ba2+ {[%clk 0:02:22]} 25. Kc2
{[%clk 0:01:05.2]} 25... Bb3+ {[%clk 0:02:18.5]} 26. Kd2 {[%clk 0:01:01.3]}
26... Rfd8 {[%clk 0:02:19.3]} 27. Ke2 {[%clk 0:00:58.1]} 27... Bxd1+ {[%clk
0:02:18.5]} 28. Ke1 {[%clk 0:00:58.1]} 28... Rxd4 {[%clk 0:02:18.2]} 29. Nd2
{[%clk 0:00:57.7]} 29... Qd3 {[%clk 0:02:18.3]} 30. Rf1 {[%clk 0:00:55.8]} 30...
Qe2# {[%clk 0:02:19]} 0-1

[Event "*** Titled Tuesday 3|2 Blitz"]
[Site "Chess.com"]
[Date "2017.06.06"]
[Round "2"]
[White "Schemato"]
[Black "danyuffa"]
[Result "0-1"]
[WhiteElo "2297"]
[BlackElo "2509"]
[TimeControl "180+2"]
[EndTime "14:09:10 PDT"]
[Termination "danyuffa won by resignation"]

1. c4 {[%clk 0:03:02]} 1... g6 {[%clk 0:03:00.2]} 2. Nc3 {[%clk 0:03:01.7]} 2...
Bg7 {[%clk 0:03:02.1]} 3. g3 {[%clk 0:02:57]} 3... Nf6 {[%clk 0:03:02.2]} 4. Bg2
{[%clk 0:02:58.2]} 4... O-O {[%clk 0:03:04.1]} 5. e4 {[%clk 0:02:59.4]} 5... d6
{[%clk 0:03:04.8]} 6. Nge2 {[%clk 0:03:00.5]} 6... c5 {[%clk 0:03:05.6]} 7. O-O
{[%clk 0:03:01.3]} 7... Nc6 {[%clk 0:03:06.1]} 8. d3 {[%clk 0:03:02.5]} 8... Bg4
{[%clk 0:03:05.9]} 9. h3 {[%clk 0:03:00.7]} 9... Bxe2 {[%clk 0:03:06.7]} 10.
Nxe2 {[%clk 0:03:01.7]} 10... Ne8 {[%clk 0:03:08.6]} 11. Rb1 {[%clk 0:03:00.6]}
11... Rb8 {[%clk 0:03:08.7]} 12. Be3 {[%clk 0:02:55]} 12... b5 {[%clk
0:03:08.8]} 13. b3 {[%clk 0:02:52.7]} 13... Nc7 {[%clk 0:03:08.9]} 14. Qd2
{[%clk 0:02:52.3]} 14... a5 {[%clk 0:03:09.5]} 15. Nc3 {[%clk 0:02:43.7]} 15...
Nd4 {[%clk 0:03:02.6]} 16. a4 {[%clk 0:02:33.1]} 16... bxc4 {[%clk 0:02:53.9]}
17. bxc4 {[%clk 0:02:32.1]} 17... Rb4 {[%clk 0:02:54.6]} 18. Rxb4 {[%clk
0:02:24.2]} 18... axb4 {[%clk 0:02:54.8]} 19. Nb5 {[%clk 0:02:25.4]} 19... Nce6
{[%clk 0:02:55.4]} 20. f4 {[%clk 0:02:14.3]} 20... Nb3 {[%clk 0:02:55.8]} 21.
Qd1 {[%clk 0:02:10.7]} 21... Ned4 {[%clk 0:02:56.9]} 22. Kh2 {[%clk 0:01:56]}
22... Qa5 {[%clk 0:02:56.3]} 23. f5 {[%clk 0:01:41.9]} 23... Qxa4 {[%clk
0:02:43.8]} 24. f6 {[%clk 0:01:38.8]} 24... Bxf6 {[%clk 0:02:37.1]} 25. Nxd6
{[%clk 0:01:39.4]} 25... Qa2 {[%clk 0:02:27.4]} 26. Nb7 {[%clk 0:01:21]} 26...
Be5 {[%clk 0:02:11.2]} 27. Rf2 {[%clk 0:01:04]} 27... Qa7 {[%clk 0:02:10]} 28.
Bxd4 {[%clk 0:00:58.9]} 28... Nxd4 {[%clk 0:02:08.6]} 0-1

[Event "*** Titled Tuesday 3|2 Blitz"]
[Site "Chess.com"]
[Date "2017.06.06"]
[Round "2"]
[White "Drags95"]
[Black "MFBerna"]
[Result "1-0"]
[WhiteElo "2511"]
[BlackElo "2267"]
[TimeControl "180+2"]
[EndTime "14:09:29 PDT"]
[Termination "Drags95 won by resignation"]

1. d4 {[%clk 0:03:02]} 1... d5 {[%clk 0:02:59.4]} 2. c4 {[%clk 0:03:02.8]} 2...
c6 {[%clk 0:03:00.6]} 3. Nc3 {[%clk 0:02:59.9]} 3... Nf6 {[%clk 0:02:59.2]} 4.
cxd5 {[%clk 0:03:00.4]} 4... cxd5 {[%clk 0:02:59.1]} 5. Bf4 {[%clk 0:03:01.7]}
5... Nc6 {[%clk 0:03:00.1]} 6. e3 {[%clk 0:03:02.9]} 6... a6 {[%clk 0:02:59.8]}
7. Bd3 {[%clk 0:03:03.2]} 7... g6 {[%clk 0:02:57]} 8. Nf3 {[%clk 0:03:01.4]}
8... Bg4 {[%clk 0:02:53.3]} 9. h3 {[%clk 0:02:52.1]} 9... Bxf3 {[%clk
0:02:53.2]} 10. Qxf3 {[%clk 0:02:54]} 10... Bg7 {[%clk 0:02:53.5]} 11. O-O
{[%clk 0:02:51.1]} 11... O-O {[%clk 0:02:53.1]} 12. Rfc1 {[%clk 0:02:51.5]}
12... Rc8 {[%clk 0:02:48.2]} 13. a3 {[%clk 0:02:04.4]} 13... e6 {[%clk 0:02:47]}
14. b4 {[%clk 0:02:03.4]} 14... b5 {[%clk 0:02:25.6]} 15. Rc2 {[%clk 0:01:51.9]}
15... Nd7 {[%clk 0:02:18.8]} 16. Rac1 {[%clk 0:01:53.2]} 16... Ne7 {[%clk
0:02:01.4]} 17. Ne2 {[%clk 0:01:36.2]} 17... Qb6 {[%clk 0:01:46.5]} 18. Bc7
{[%clk 0:01:18.9]} 18... Qb7 {[%clk 0:01:41.4]} 19. Bd6 {[%clk 0:01:20.4]} 19...
Bf6 {[%clk 0:00:56.4]} 20. Rc7 {[%clk 0:01:17.9]} 1-0

[Event "*** Titled Tuesday 3|2 Blitz"]
[Site "Chess.com"]
[Date "2017.06.06"]
[Round "2"]
[White "DiamondCrusher22"]
[Black "GGuseinov"]
[Result "0-1"]
[WhiteElo "2013"]
[BlackElo "2708"]
[TimeControl "180+2"]
[EndTime "14:09:41 PDT"]
[Termination "GGuseinov won by resignation"]

1. e4 {[%clk 0:03:02]} 1... c5 {[%clk 0:03:00.9]} 2. Nf3 {[%clk 0:03:02.4]} 2...
Nc6 {[%clk 0:03:02.1]} 3. c3 {[%clk 0:02:59.9]} 3... Nf6 {[%clk 0:03:02.3]} 4.
e5 {[%clk 0:02:59.1]} 4... Nd5 {[%clk 0:03:03.3]} 5. d4 {[%clk 0:02:59.4]} 5...
cxd4 {[%clk 0:03:04.6]} 6. cxd4 {[%clk 0:03:00.1]} 6... d6 {[%clk 0:03:06]} 7.
exd6 {[%clk 0:02:57]} 7... Qxd6 {[%clk 0:03:06.3]} 8. Nc3 {[%clk 0:02:57.5]}
8... g6 {[%clk 0:03:07.4]} 9. Bc4 {[%clk 0:02:55.9]} 9... Nb6 {[%clk 0:03:08.1]}
10. Bb3 {[%clk 0:02:50.9]} 10... Bg7 {[%clk 0:03:09.3]} 11. Be3 {[%clk
0:02:47.5]} 11... O-O {[%clk 0:03:09.8]} 12. O-O {[%clk 0:02:48.1]} 12... Bg4
{[%clk 0:03:10.7]} 13. h3 {[%clk 0:02:43.3]} 13... Bxf3 {[%clk 0:03:11.2]} 14.
Qxf3 {[%clk 0:02:44.3]} 14... Bxd4 {[%clk 0:03:12.3]} 15. Nb5 {[%clk 0:02:36.3]}
15... Qe5 {[%clk 0:03:08.5]} 16. Nxd4 {[%clk 0:02:32.3]} 16... Nxd4 {[%clk
0:03:09.6]} 17. Bxd4 {[%clk 0:02:20.3]} 17... Qxd4 {[%clk 0:03:10.3]} 18. Qxb7
{[%clk 0:02:20.7]} 18... e6 {[%clk 0:03:03]} 19. Rab1 {[%clk 0:02:04.5]} 19...
a5 {[%clk 0:02:58.6]} 20. Rfd1 {[%clk 0:01:52.7]} 20... Qb4 {[%clk 0:02:59.1]}
21. Qf3 {[%clk 0:01:25.3]} 21... a4 {[%clk 0:02:56.7]} 22. Bc2 {[%clk
0:01:23.3]} 22... Rac8 {[%clk 0:02:51.7]} 23. Be4 {[%clk 0:01:16]} 23... Nc4
{[%clk 0:02:52.9]} 24. Qc3 {[%clk 0:00:47.2]} 24... Qxc3 {[%clk 0:02:51.1]} 25.
bxc3 {[%clk 0:00:48.1]} 25... a3 {[%clk 0:02:50.1]} 26. Rb3 {[%clk 0:00:41.5]}
26... Rfd8 {[%clk 0:02:50.4]} 27. Ra1 {[%clk 0:00:18.8]} 27... Rd2 {[%clk
0:02:48.5]} 28. Bb7 {[%clk 0:00:19.1]} 28... Rcd8 {[%clk 0:02:48.3]} 29. Ba6
{[%clk 0:00:19.1]} 29... Nb2 {[%clk 0:02:41.6]} 30. Rxa3 {[%clk 0:00:17.4]}
30... Nd1 {[%clk 0:02:43.5]} 31. f3 {[%clk 0:00:15.2]} 31... Ne3 {[%clk
0:02:44.7]} 32. Bf1 {[%clk 0:00:14.3]} 32... Rd1 {[%clk 0:02:45.7]} 33. Kf2
{[%clk 0:00:05.6]} 33... Rxa1 {[%clk 0:02:45.7]} 34. Kxe3 {[%clk 0:00:03.2]}
34... Rxf1 {[%clk 0:02:46.3]} 35. Rb3 {[%clk 0:00:04.1]} 35... Ra1 {[%clk
0:02:47]} 0-1

[Event "*** Titled Tuesday 3|2 Blitz"]
[Site "Chess.com"]
[Date "2017.06.06"]
[Round "2"]
[White "yosephtaher"]
[Black "Abrito99"]
[Result "0-1"]
[WhiteElo "2552"]
[BlackElo "2313"]
[TimeControl "180+2"]
[EndTime "14:09:46 PDT"]
[Termination "Abrito99 won by resignation"]

1. e4 {[%clk 0:03:02]} 1... e6 {[%clk 0:02:59.9]} 2. d4 {[%clk 0:03:03.1]} 2...
d5 {[%clk 0:03:01.1]} 3. Nc3 {[%clk 0:03:04.5]} 3... Bb4 {[%clk 0:03:01.6]} 4.
e5 {[%clk 0:03:05.8]} 4... c5 {[%clk 0:03:02.4]} 5. Bd2 {[%clk 0:03:07.3]} 5...
Ne7 {[%clk 0:02:55.9]} 6. dxc5 {[%clk 0:03:07.8]} 6... O-O {[%clk 0:02:44.8]} 7.
Nf3 {[%clk 0:03:05.7]} 7... Nd7 {[%clk 0:02:42.9]} 8. a3 {[%clk 0:03:05.6]} 8...
Bxc5 {[%clk 0:02:38.7]} 9. Bd3 {[%clk 0:03:06]} 9... Ng6 {[%clk 0:02:36.1]} 10.
Qe2 {[%clk 0:03:05.5]} 10... a6 {[%clk 0:02:31.7]} 11. O-O {[%clk 0:03:02]}
11... Qc7 {[%clk 0:02:30.3]} 12. Rae1 {[%clk 0:03:01.5]} 12... Ba7 {[%clk
0:02:21.8]} 13. h4 {[%clk 0:03:01.2]} 13... Bb8 {[%clk 0:02:15.8]} 14. Bxg6
{[%clk 0:02:58.7]} 14... fxg6 {[%clk 0:02:13]} 15. Qd3 {[%clk 0:02:51.7]} 15...
Rf5 {[%clk 0:01:40.6]} 16. g4 {[%clk 0:02:34]} 16... Rf8 {[%clk 0:01:19.3]} 17.
Kg2 {[%clk 0:02:29.4]} 17... b5 {[%clk 0:01:15.3]} 18. h5 {[%clk 0:02:27.1]}
18... d4 {[%clk 0:01:04.8]} 19. Nxd4 {[%clk 0:02:22.4]} 19... Bb7+ {[%clk
0:01:02.5]} 20. Kg1 {[%clk 0:02:11]} 20... Nxe5 {[%clk 0:01:01.5]} 21. Qg3
{[%clk 0:02:12]} 21... Qc5 {[%clk 0:00:57.6]} 22. Nxe6 {[%clk 0:02:04.8]} 22...
Qc6 {[%clk 0:00:53.6]} 23. f3 {[%clk 0:01:57.6]} 23... Nxf3+ {[%clk 0:00:33.4]}
24. Rxf3 {[%clk 0:01:55.9]} 24... Rxf3 {[%clk 0:00:34.6]} 25. Qh2 {[%clk
0:01:38.4]} 25... Bxh2+ {[%clk 0:00:34.2]} 0-1